bitfinex/quotes_SOLUSD_20250717
["timestamp","ask_amount","ask_price","bid_price","bid_amount"]
[1752785100848,16.78468397,173.39,173.36,0.2]
[1752785101151,50.28175043,173.43,173.36,0.92]
[1752785101152,0.69,173.42,173.36,0.92]
[1752785101353,26.0,173.4,173.39,0.72]
[1752785101559,12.43204768,173.43,173.39,0.72]
[1752785101856,6.97864989,173.41,173.4,0.72]
[1752785102048,5.76701268,173.4,173.38,0.06]
[1752785102250,6.97864989,173.39,173.38,0.06]
[1752785102454,24.45333386,173.39,173.36,0.2]
[1752785102668,49.76333386,173.37,173.36,0.2]
[1752785103082,42.78468397,173.34,173.33,0.2]
[1752785103253,49.76333386,173.34,173.33,0.2]
[1752785103457,16.78468397,173.33,173.31,0.2]
[1752785103657,49.76333386,173.32,173.31,0.2]
[1752785103878,61.70929353,173.32,173.31,0.2]
[1752785104172,37.27595967,173.32,173.31,0.87]
[1752785104366,18.25460956,173.32,173.31,0.87]
[1752785104574,11.27595967,173.32,173.31,0.87]
[1752785108560,11.27595967,173.32,173.31,7.84864989]
[1752785108758,11.27595967,173.32,173.31,21.45625739]
[1752785109982,11.27595967,173.32,173.31,22.03325814]
[1752785110161,9.60935967,173.32,173.31,22.03325814]
[1752785110679,9.60935967,173.32,173.31,21.45625739]
[1752785111571,9.60935967,173.32,173.31,22.03325814]
[1752785111781,9.60935967,173.32,173.31,15.05460825]
[1752785112082,9.60935967,173.32,173.31,21.45625739]
[1752785112582,9.60935967,173.32,173.31,15.68624989]
[1752785112782,9.60935967,173.32,173.31,0.87]
[1752785113081,16.58800956,173.32,173.31,0.2]
[1752785113278,22.35768415,173.32,173.31,0.2]
[1752785113584,16.58800956,173.32,173.31,0.2]
[1752785113880,16.58800956,173.32,173.31,0.87]
[1752785114088,9.60935967,173.32,173.31,0.87]
[1752785114377,9.60935967,173.32,173.31,0.2]
[1752785114588,22.35768415,173.32,173.31,0.2]
[1752785115280,39.14236812,173.32,173.31,0.2]
[1752785116372,39.81236812,173.32,173.31,0.2]
[1752785116576,39.14236812,173.32,173.31,0.2]
[1752785117276,22.35768415,173.32,173.31,0.2]
[1752785118472,39.81236812,173.32,173.31,0.2]
[1752785119172,39.14236812,173.32,173.31,0.2]
[1752785119565,39.81236812,173.32,173.31,0.2]
[1752785120162,39.14236812,173.32,173.31,0.2]
[1752785120384,9.60935967,173.32,173.31,0.87]
[1752785121496,9.60935967,173.32,173.31,7.84864989]
[1752785121873,9.60935967,173.32,173.31,8.2539075]
[1752785122089,9.60935967,173.32,173.31,15.23255739]
[1752785122668,9.60935967,173.32,173.31,21.84665739]
[1752785123280,161.0456988,173.4,173.31,21.84665739]
[1752785123479,6.97864989,173.39,173.34,6.97864989]
[1752785123674,6.97864989,173.39,173.35,0.67]
[1752785123870,6.97864989,173.39,173.36,0.67]
[1752785124081,6.97864989,173.39,173.34,36.93864989]
[1752785124270,154.06704891,173.4,173.37,0.67]
[1752785124271,161.04570618,173.4,173.37,0.67]
[1752785124471,6.97864989,173.39,173.37,0.67]
[1752785125282,161.04570618,173.4,173.37,0.67]
[1752785125590,6.97864989,173.41,173.38,0.67]
[1752785125787,6.97864989,173.42,173.39,0.67]
[1752785126893,12.74511398,173.42,173.39,0.67]
[1752785127267,6.43646409,173.42,173.37,0.67]
[1752785127589,6.97864989,173.38,173.35,30.61]
[1752785128784,6.97864989,173.38,173.35,29.94]
[1752785128971,10.24843843,173.38,173.35,29.94]
[1752785129584,10.24843843,173.38,173.35,30.61]
[1752785129890,16.01588952,173.39,173.36,0.67]
[1752785130691,10.24843843,173.38,173.36,0.67]
[1752785131308,148.3,173.39,173.37,0.67]
[1752785131480,174.3,173.43,173.38,10.91843843]
[1752785131674,10.24843843,173.42,173.39,30.61]
[1752785131991,158.54843843,173.43,173.4,0.67]
[1752785132198,148.3,173.43,173.41,0.67]
[1752785132490,148.3,173.43,173.42,0.67]
[1752785133196,148.3,173.43,173.4,0.68]
[1752785133375,148.3,173.43,173.41,0.68]
[1752785133577,148.3,173.43,173.42,0.68]
[1752785133792,7.99982107,173.44,173.42,0.68]
[1752785133970,7.99982107,173.44,173.43,29.94]
[1752785134171,7.99982107,173.44,173.43,30.62]
[1752785134790,7.99982107,173.44,173.43,40.86843843]
[1752785134991,164.31287785,173.48,173.43,40.86843843]
[1752785135186,148.3,173.48,173.44,10.92843843]
[1752785135385,148.3,173.48,173.45,0.68]
[1752785135592,148.3,173.48,173.44,10.24843843]
[1752785135796,148.3,173.48,173.46,0.68]
[1752785136097,148.3,173.48,173.44,10.24843843]
[1752785136274,148.3,173.48,173.46,0.68]
[1752785137114,148.3,173.48,173.47,0.68]
[1752785137596,0.03,173.49,173.47,30.62]
[1752785137795,0.03,173.49,173.48,0.68]
[1752785137983,0.03,173.49,173.47,29.94]
[1752785138188,0.03,173.48,173.47,29.94]
[1752785138790,0.03,173.48,173.47,30.62]
[1752785139205,0.03,173.48,173.47,29.94]
[1752785139379,0.03,173.48,173.47,30.62]
[1752785140290,0.03,173.48,173.47,46.63312396]
[1752785140598,0.03,173.48,173.47,30.62]
[1752785140977,0.03,173.48,173.47,29.94]
[1752785141380,10.27843843,173.48,173.47,29.94]
[1752785142099,0.03,173.48,173.47,29.94]
[1752785142290,0.03,173.48,173.47,30.62]
[1752785143388,0.03,173.48,173.47,46.63312396]
[1752785143594,0.03,173.48,173.47,40.86843843]
[1752785143888,0.03,173.48,173.47,30.62]
[1752785144095,0.03,173.48,173.47,29.94]
[1752785144921,0.03,173.48,173.47,30.62]
[1752785145891,0.03,173.48,173.47,36.96115408]
[1752785146205,0.03,173.48,173.47,47.20959251]
[1752785146796,0.03,173.48,173.47,48.83329251]
[1752785147103,0.03,173.48,173.47,38.58485408]
[1752785147285,0.03,173.48,173.47,48.83329251]
[1752785147893,0.03,173.48,173.47,8.06838553]
[1752785148092,0.03,173.48,173.47,48.23682396]
[1752785148490,0.03,173.48,173.47,42.47213843]
[1752785148992,0.03,173.48,173.47,30.6]
[1752785149211,10.27843843,173.48,173.44,0.68]
[1752785149398,10.24843843,173.47,173.45,29.92]
[1752785149801,10.27843843,173.48,173.45,29.92]
[1752785151814,0.03,173.48,173.47,30.6]
[1752785151990,0.03,173.48,173.47,36.36468553]
[1752785152187,0.03,173.48,173.47,30.6]
[1752785155516,0.03,173.48,173.47,43.34364776]
[1752785156412,0.03,173.48,173.47,36.36468553]
[1752785156714,0.03,173.48,173.47,37.57896223]
[1752785157014,0.03,173.48,173.47,29.92]
[1752785158901,7.67896223,173.48,173.42,8.2907]
[1752785159096,6.97896223,173.46,173.43,29.92]
[1752785159511,7.64896223,173.46,173.43,29.92]
[1752785160423,6.97896223,173.44,173.43,29.92]
[1752785160804,148.3,173.47,173.43,30.6]
[1752785161005,7.64896223,173.46,173.43,29.92]
[1752785161602,161.04367257,173.47,173.44,0.68]
[1752785161802,161.04367257,173.47,173.45,29.92]
[1752785162111,148.3,173.47,173.45,30.6]
[1752785162428,148.3,173.47,173.46,0.68]
[1752785163233,148.3,173.47,173.46,7.65896223]
[1752785163404,148.3,173.47,173.46,0.68]
[1752785163902,148.3,173.47,173.46,7.65896223]
[1752785165815,148.3,173.47,173.45,29.92]
[1752785166026,7.69896223,173.46,173.45,29.92]
[1752785166335,13.4639801,173.46,173.45,29.92]
[1752785166513,6.97896223,173.46,173.45,29.92]
[1752785166708,13.4639801,173.46,173.45,29.92]
[1752785166908,13.4639801,173.46,173.38,8.2811]
[1752785166909,30.24866407,173.46,173.39,0.7]
[1752785167213,6.97896223,173.44,173.4,29.92]
[1752785167413,6.97896223,173.44,173.4,30.62]
[1752785168138,7.69896223,173.44,173.4,30.62]
[1752785168311,6.97896223,173.44,173.4,30.62]
[1752785168516,148.3,173.45,173.41,7.67896223]
[1752785168722,148.3,173.45,173.42,30.62]
[1752785169539,148.3,173.45,173.43,0.7]
[1752785169722,148.3,173.45,173.44,29.92]
[1752785170111,148.3,173.45,173.44,30.62]
[1752785171028,148.3,173.45,173.44,29.92]
[1752785171225,148.3,173.45,173.44,30.62]
[1752785171411,148.3,173.45,173.44,40.85998203]
[1752785171613,148.3,173.45,173.44,46.62566468]
[1752785172039,148.3,173.45,173.44,40.85998203]
[1752785172610,0.03,173.48,173.44,46.62566468]
[1752785172921,0.03,173.48,173.45,0.7]
[1752785173224,0.03,173.48,173.46,29.92]
[1752785173837,0.03,173.48,173.46,30.62]
[1752785174827,0.03,173.48,173.46,29.92]
[1752785176015,10.98998203,173.48,173.46,29.92]
[1752785176333,0.03,173.48,173.46,29.92]
[1752785176520,0.03,173.48,173.46,30.62]
[1752785176727,0.03,173.48,173.47,0.7]
[1752785176924,0.03,173.48,173.43,0.7]
[1752785177127,10.23998203,173.47,173.44,29.92]
[1752785177511,0.03,173.48,173.45,0.7]
[1752785177729,0.03,173.48,173.46,29.92]
[1752785179337,0.03,173.48,173.47,10.93998203]
[1752785180714,0.03,173.48,173.47,0.7]
[1752785180912,0.03,173.48,173.47,6.46468553]
[1752785181124,0.03,173.48,173.47,36.40468553]
[1752785181323,0.03,173.48,173.47,30.64]
[1752785181615,0.03,173.48,173.47,29.94]
[1752785183114,0.03,173.48,173.47,40.87998203]
[1752785183327,0.03,173.48,173.47,29.94]
[1752785183716,0.03,173.48,173.47,30.64]
[1752785185843,10.98998203,173.48,173.47,29.92]
[1752785186029,10.98998203,173.48,173.4,10.23998203]
[1752785186235,10.23998203,173.44,173.41,29.94]
[1752785186734,26.0,173.47,173.41,29.94]
[1752785186735,0.72,173.47,173.42,10.93998203]
[1752785186935,10.23998203,173.47,173.43,30.64]
[1752785187140,5.79463132,173.48,173.44,29.94]
[1752785187349,6.51463132,173.48,173.44,29.94]
[1752785187644,10.23998203,173.47,173.44,29.94]
[1752785188922,0.03,173.48,173.45,10.93998203]
[1752785189144,0.03,173.48,173.46,30.64]
[1752785189444,0.03,173.48,173.46,29.94]
[1752785190147,7.72875589,173.48,173.46,29.94]
[1752785190363,13.49313531,173.48,173.46,29.94]
[1752785190849,6.51437942,173.48,173.46,29.94]
[1752785191231,12.77313531,173.48,173.46,29.94]
[1752785191543,12.77313531,173.48,173.41,7.67875589]
[1752785191544,7.69875589,173.47,173.41,7.67875589]
[1752785191737,7.69875589,173.46,173.42,29.92]
[1752785191919,0.72,173.46,173.42,29.92]
[1752785192123,6.97875589,173.47,173.43,0.7]
[1752785192340,6.97875589,173.47,173.44,29.94]
[1752785192851,12.77320431,173.48,173.44,29.94]
[1752785193037,12.77320431,173.48,173.44,30.62]
[1752785193239,0.03,173.48,173.45,0.68]
[1752785193440,0.03,173.48,173.46,30.62]
[1752785194551,7.00875589,173.48,173.46,29.94]
[1752785194748,7.67875589,173.48,173.46,29.94]
[1752785195048,7.64875589,173.47,173.46,29.94]
[1752785195352,7.64875589,173.47,173.4,39.42555041]
[1752785195532,6.97875589,173.45,173.41,29.96]
[1752785195740,7.64875589,173.45,173.41,29.96]
[1752785195944,0.67,173.45,173.41,29.96]
[1752785196247,155.27875589,173.46,173.41,30.64]
[1752785196632,154.06516317,173.46,173.41,35.72664119]
[1752785196834,161.04391906,173.46,173.42,0.68]
[1752785197039,161.04391906,173.46,173.43,29.96]
[1752785199240,0.67,173.45,173.43,29.96]
[1752785199441,7.64875589,173.45,173.43,29.96]
[1752785200252,0.67,173.45,173.43,29.96]
[1752785201160,161.04391906,173.46,173.43,29.96]
[1752785201362,155.27875589,173.45,173.43,29.96]
[1752785201569,155.94875589,173.45,173.43,29.96]
[1752785201864,0.67,173.44,173.43,29.96]
[1752785203055,6.43568265,173.44,173.43,29.96]
[1752785203260,13.41443854,173.44,173.36,0.68]
[1752785203569,6.97875589,173.38,173.36,29.92]
[1752785204560,155.27875589,173.41,173.37,0.68]
[1752785204761,155.94875589,173.41,173.37,0.68]
[1752785205065,148.3,173.41,173.38,0.68]
[1752785205244,148.3,173.41,173.39,29.92]
[1752785205834,148.3,173.41,173.39,30.6]
[1752785206241,148.3,173.41,173.39,29.92]
[1752785206846,161.71545121,173.41,173.39,29.92]
[1752785207354,7.64875589,173.4,173.33,7.41313951]
[1752785207555,6.97875589,173.39,173.34,36.89875589]
[1752785207859,6.97875589,173.39,173.35,0.68]
[1752785208044,6.97875589,173.4,173.35,7.65875589]
[1752785208239,148.3,173.39,173.36,0.68]
[1752785208454,148.3,173.39,173.37,37.59875589]
[1752785208639,148.3,173.39,173.38,0.68]
[1752785208841,148.3,173.39,173.37,29.94]
[1752785209848,148.3,173.39,173.37,30.62]
[1752785210244,148.3,173.39,173.38,0.68]
[1752785210767,148.3,173.39,173.37,29.94]
[1752785211272,148.3,173.39,173.37,36.91875589]
[1752785211460,148.3,173.39,173.37,37.59875589]
[1752785212048,148.3,173.39,173.38,7.65875589]
[1752785212257,148.3,173.39,173.38,0.68]
[1752785212457,148.3,173.39,173.37,36.91875589]
[1752785212770,148.3,173.39,173.37,37.59875589]
[1752785215673,148.3,173.39,173.38,7.65875589]
[1752785216475,148.3,173.44,173.38,7.65875589]
[1752785216775,148.3,173.44,173.42,6.97875589]
[1752785216947,148.3,173.44,173.43,29.92]
[1752785217275,148.3,173.44,173.43,30.6]
[1752785217967,148.3,173.44,173.43,37.57875589]
[1752785219572,148.3,173.44,173.43,30.6]
[1752785220071,148.3,173.44,173.43,29.92]
[1752785220570,161.71443854,173.44,173.42,29.92]
[1752785220770,7.64875589,173.43,173.42,29.92]
[1752785221274,7.64875589,173.43,173.35,7.65875589]
[1752785221471,148.97,173.44,173.39,6.97875589]
[1752785221650,148.3,173.44,173.41,6.97875589]
[1752785221852,148.3,173.44,173.42,30.64]
[1752785222284,148.3,173.44,173.42,29.96]
[1752785222850,148.3,173.44,173.42,30.67]
[1752785223351,148.3,173.44,173.43,0.71]
[1752785223557,31.76475581,173.47,173.43,7.68875589]
[1752785223759,31.76475581,173.47,173.44,29.96]
[1752785223958,32.45475581,173.47,173.44,29.96]
[1752785224366,0.69,173.46,173.44,29.96]
[1752785224775,0.69,173.45,173.44,29.96]
[1752785224968,7.66875589,173.45,173.44,29.96]
[1752785225172,0.69,173.45,173.44,29.96]
[1752785225984,6.45535024,173.45,173.44,29.96]
[1752785226281,0.69,173.45,173.44,29.96]
[1752785226472,12.74385803,173.46,173.44,29.96]
[1752785226677,0.69,173.45,173.44,29.96]
[1752785227767,0.69,173.45,173.4,7.68875589]
[1752785227968,6.45537304,173.45,173.4,7.68875589]
[1752785228483,6.45537304,173.45,173.41,29.92]
[1752785228782,7.66875589,173.44,173.41,29.92]
[1752785228983,155.96875589,173.44,173.41,29.92]
[1752785230177,148.99,173.44,173.41,29.92]
[1752785231080,148.3,173.44,173.41,29.92]
[1752785231482,148.3,173.44,173.41,30.63]
[1752785232172,148.3,173.44,173.43,6.97875589]
[1752785232380,148.33,173.48,173.43,7.68875589]
[1752785232691,148.33,173.48,173.45,6.97875589]
[1752785233064,148.33,173.48,173.44,30.63]
[1752785233065,148.33,173.48,173.46,7.68875589]
[1752785233273,148.33,173.48,173.47,36.89875589]
[1752785233484,148.33,173.48,173.47,29.92]
[1752785234686,148.33,173.48,173.47,36.39468553]
[1752785234885,148.33,173.48,173.47,43.37344142]
[1752785235078,0.03,173.48,173.47,43.37344142]
[1752785235976,0.03,173.48,173.47,44.89394142]
[1752785236182,0.03,173.48,173.47,45.47040997]
[1752785236593,0.03,173.49,173.47,62.25509394]
[1752785236893,0.03,173.49,173.48,7.68875589]
[1752785238275,0.03,173.49,173.48,13.45310912]
[1752785241678,0.03,173.49,173.47,6.34109078]
[1752785241880,0.03,173.49,173.48,36.89875589]
[1752785243799,0.03,173.49,173.48,42.66310912]
[1752785244005,0.03,173.49,173.48,43.94954444]
[1752785245102,0.03,173.49,173.48,43.37310912]
[1752785250906,0.03,173.49,173.48,42.66310912]
[1752785251107,0.03,173.49,173.48,42.64310912]
[1752785251319,0.03,173.49,173.48,35.66435323]
[1752785251491,0.03,173.49,173.48,42.64310912]
[1752785252005,0.03,173.49,173.48,35.66435323]
[1752785252189,0.03,173.49,173.48,42.64310912]
[1752785252394,0.03,173.49,173.48,43.35310912]
[1752785252985,0.03,173.49,173.48,42.64310912]
[1752785254306,0.03,173.49,173.48,42.64310912]
[1752785254514,0.03,173.49,173.48,35.66435323]
[1752785254692,0.03,173.49,173.48,29.9]
[1752785255035,0.03,173.49,173.48,42.64310912]
[1752785255194,0.03,173.49,173.48,43.92954444]
[1752785259115,0.03,173.49,173.48,43.21954444]
[1752785259416,0.03,173.49,173.48,42.64310912]
[1752785259595,0.03,173.49,173.48,43.35310912]
[1752785262922,0.03,173.49,173.48,60.13779309]
[1752785265313,1e-08,173.49,173.48,60.13779309]
[1752785265518,1e-08,173.5,173.49,16.78468397]
[1752785265717,148.33,173.55,173.52,26.0]
[1752785265901,148.33,173.55,173.54,6.97875589]
[1752785265902,0.03,173.55,173.54,6.97875589]
[1752785266094,0.03,173.55,173.54,7.68875589]
[1752785266718,0.03,173.55,173.54,6.97875589]
[1752785266922,0.71,173.55,173.54,6.97875589]
[1752785267601,0.03,173.55,173.54,6.97875589]
[1752785268097,0.03,173.55,173.54,12.74111615]
[1752785272622,0.03,173.55,173.54,13.45111615]
[1752785273501,0.03,173.55,173.54,12.74111615]
[1752785274930,0.03,173.55,173.54,13.45111615]
[1752785279331,0.03,173.55,173.54,12.74111615]
[1752785280131,0.03,173.55,173.54,13.45111615]
[1752785281434,0.03,173.55,173.54,6.47236026]
[1752785281635,0.03,173.55,173.54,13.45111615]
[1752785282718,0.03,173.55,173.54,6.47236026]
[1752785282922,0.03,173.55,173.54,12.74111615]
[1752785283437,0.74,173.55,173.54,29.88]
[1752785283613,0.03,173.55,173.54,29.88]
[1752785283936,0.03,173.55,173.54,36.85875589]
[1752785284434,0.03,173.55,173.54,42.62111615]
[1752785285319,0.03,173.55,173.54,43.29111615]
[1752785286737,0.03,173.55,173.54,42.62111615]
[1752785287238,0.03,173.55,173.54,43.29111615]
[1752785290442,0.03,173.55,173.54,42.62111615]
[1752785295857,0.03,173.55,173.54,43.29111615]
[1752785296651,0.03,173.55,173.54,35.64236026]
[1752785296865,0.03,173.55,173.54,42.62111615]
[1752785300757,0.03,173.55,173.54,43.29111615]
[1752785303564,0.03,173.56,173.54,60.07580012]
[1752785303775,0.03,173.56,173.55,8.22495871]
[1752785304773,0.03,173.56,173.55,25.00964268]
[1752785305064,0.03,173.56,173.55,30.77167091]
[1752785305257,0.2,173.6,173.55,45.17674149]
[1752785305451,0.2,173.6,173.59,6.97875589]
[1752785305656,0.2,173.6,173.59,37.43482594]
[1752785305842,0.2,173.6,173.59,38.10482594]
[1752785307669,0.2,173.6,173.59,37.43482594]
[1752785309150,0.2,173.6,173.59,43.86552644]
[1752785309464,0.91,173.6,173.59,30.45607005]
[1752785309667,0.91,173.6,173.56,0.57616962]
[1752785309965,0.71,173.59,173.57,36.83875589]
[1752785310160,0.71,173.58,173.57,36.83875589]
[1752785310368,0.71,173.58,173.5,0.57636887]
[1752785310552,6.97875589,173.57,173.52,6.97875589]
[1752785310751,6.97875589,173.57,173.53,29.86]
[1752785310962,0.71,173.56,173.53,29.86]
[1752785311474,6.47187095,173.56,173.53,29.86]
[1752785311675,5.76187095,173.56,173.53,29.86]
[1752785311971,5.76143867,173.57,173.54,6.97875589]
[1752785312172,0.71,173.56,173.55,29.86]
[1752785313274,5.76202823,173.55,173.51,6.97875589]
[1752785313468,0.72,173.54,173.52,29.86]
[1752785313649,5.76202823,173.55,173.52,29.86]
[1752785313974,0.72,173.54,173.52,29.86]
[1752785314269,0.72,173.53,173.52,29.86]
[1752785318369,0.72,173.53,173.52,36.83875589]
[1752785318555,5.76210922,173.55,173.52,36.83875589]
[1752785318762,0.72,173.58,173.54,6.97875589]
[1752785319072,150.8682,173.6,173.57,6.97875589]
[1752785319366,150.1482,173.6,173.58,29.86]
[1752785319573,0.72,173.59,173.58,36.83875589]
[1752785320276,0.72,173.59,173.58,29.86]
[1752785321775,6.4807005,173.59,173.58,29.86]
[1752785322179,0.72,173.59,173.58,29.86]
[1752785323576,155.90867711,173.6,173.58,29.86]
[1752785323780,156.62867711,173.6,173.58,29.86]
[1752785324464,150.8682,173.6,173.58,29.86]
[1752785324777,0.2,173.6,173.59,7.63875589]
[1752785325665,0.2,173.6,173.59,57.40219575]
[1752785326179,0.2,173.6,173.59,63.49875589]
[1752785326784,0.2,173.6,173.59,69.25945639]
[1752785327675,0.03,173.62,173.61,26.0]
[1752785327880,0.03,173.62,173.61,80.19944354]
[1752785328078,0.03,173.62,173.61,80.85944354]
[1752785328765,0.03,173.62,173.61,86.6194804]
[1752785330101,0.03,173.64,173.61,86.6194804]
[1752785330269,0.03,173.64,173.63,6.97875589]
[1752785330467,0.03,173.64,173.63,37.41469322]
[1752785330667,0.03,173.64,173.63,38.07469322]
[1752785331789,0.03,173.64,173.63,37.39469322]
[1752785332884,0.03,173.64,173.63,43.1540666]
[1752785333191,0.03,173.64,173.63,43.8140666]
[1752785335677,0.03,173.64,173.63,60.59875057]
[1752785336994,0.03,173.64,173.63,13.3140666]
[1752785337166,0.75,173.64,173.63,33.55469322]
[1752785337371,0.75,173.64,173.63,69.1540666]
[1752785337689,0.03,173.64,173.63,69.1540666]
[1752785337897,0.03,173.64,173.63,43.1540666]
[1752785339674,0.03,173.64,173.63,43.8140666]
[1752785340787,0.75,173.64,173.63,37.39469322]
[1752785340991,0.75,173.64,173.63,29.84]
[1752785341384,0.75,173.64,173.63,36.81875589]
[1752785341900,0.03,173.64,173.63,36.81875589]
[1752785342083,0.03,173.64,173.63,42.57812927]
[1752785342288,0.03,173.64,173.63,43.23812927]
[1752785343988,0.03,173.64,173.63,60.02281324]
[1752785344301,0.2,173.66,173.65,42.78468397]
[1752785344481,0.2,173.66,173.65,80.17931086]
[1752785344681,0.2,173.66,173.65,80.87931086]
[1752785345196,0.2,173.66,173.65,86.6380209]
[1752785345692,0.2,173.67,173.65,86.6380209]
[1752785345894,0.2,173.67,173.66,7.67875589]
[1752785346694,0.2,173.67,173.66,13.43713433]
[1752785347874,0.03,173.71,173.69,26.0]
[1752785348090,0.03,173.71,173.7,37.39446112]
[1752785348598,0.03,173.71,173.7,38.09446112]
[1752785349996,0.2,173.73,173.72,79.58343986]
[1752785350303,0.2,173.73,173.72,80.28343986]
[1752785350998,0.2,173.73,173.72,86.03982945]
[1752785351484,0.2,173.73,173.72,69.25514548]
[1752785351682,0.2,173.73,173.72,62.79875589]
[1752785351988,0.2,173.73,173.72,37.37439484]
[1752785352397,0.2,173.73,173.72,30.39563895]
[1752785352692,0.2,173.73,173.72,37.37439484]
[1752785353200,0.2,173.73,173.72,0.57563895]
[1752785353380,15.19421414,173.73,173.65,6.33433756]
[1752785353700,0.68,173.72,173.68,6.97875589]
[1752785353897,0.68,173.71,173.69,29.82]
[1752785354776,2.4594,173.73,173.69,36.79875589]
[1752785354974,2.4594,173.73,173.7,7.55446112]
[1752785355207,2.4594,173.73,173.71,29.82]
[1752785355382,0.68,173.72,173.71,29.82]
[1752785355693,1.7794,173.73,173.71,29.82]
[1752785355901,0.68,173.72,173.71,29.82]
[1752785356508,1.7794,173.73,173.71,29.82]
[1752785356708,2.4594,173.73,173.71,29.82]
[1752785357009,0.2,173.73,173.72,6.97875589]
[1752785358173,0.2,173.73,173.71,36.79875589]
[1752785358400,0.88,173.73,173.71,36.79875589]
[1752785362103,0.68,173.72,173.71,29.82]
[1752785362502,7.65875589,173.72,173.71,29.82]
[1752785363581,6.43638959,173.72,173.71,29.82]
[1752785363784,0.68,173.72,173.71,29.82]
[1752785363988,5.95613323,173.73,173.71,29.82]
[1752785364306,7.65875589,173.72,173.71,29.82]
[1752785365489,1.5761,173.71,173.68,29.82]
[1752785365793,0.68,173.7,173.68,29.82]
[1752785366387,1.5761,173.71,173.68,29.82]
[1752785366611,148.5,173.73,173.68,42.55647018]
[1752785366788,149.18,173.73,173.7,6.97875589]
[1752785366983,149.18,173.73,173.71,29.82]
[1752785367189,0.68,173.72,173.71,29.82]
[1752785367682,6.43638959,173.72,173.71,29.82]
[1752785368516,13.41514548,173.72,173.71,29.82]
[1752785369115,6.43638959,173.72,173.71,29.82]
[1752785370288,13.41514548,173.72,173.71,29.82]
[1752785371901,6.43638959,173.72,173.69,29.82]
[1752785372328,154.25614043,173.73,173.69,29.82]
[1752785372536,148.5,173.73,173.7,0.7]
[1752785372711,148.5,173.73,173.7,7.67875589]
[1752785373419,148.5,173.73,173.7,0.7]
[1752785373625,149.18,173.73,173.69,36.79875589]
[1752785373842,149.18,173.73,173.69,37.51875589]
[1752785375618,7.65875589,173.72,173.69,29.82]
[1752785375821,0.68,173.71,173.69,29.82]
[1752785377327,5.81671046,173.72,173.69,29.82]
[1752785377515,6.49671046,173.72,173.69,29.82]
[1752785377717,13.47546635,173.72,173.69,29.82]
[1752785377917,6.49671046,173.72,173.69,29.82]
[1752785378118,13.47546635,173.72,173.69,29.82]
[1752785378533,0.68,173.71,173.69,29.82]
[1752785379823,12.79546635,173.72,173.69,29.82]
[1752785380022,0.68,173.71,173.69,29.82]
[1752785380619,7.65875589,173.71,173.69,29.82]
[1752785381925,13.41553758,173.71,173.69,29.82]
[1752785382123,6.43678169,173.71,173.69,29.82]
[1752785382321,6.43678169,173.71,173.64,0.03]
[1752785382322,7.65875589,173.7,173.64,0.03]
[1752785382516,7.65875589,173.7,173.65,29.86]
[1752785382517,6.97875589,173.68,173.65,29.86]
[1752785382915,6.97875589,173.69,173.65,29.86]
[1752785383234,7.65875589,173.69,173.65,30.58]